Workbook

Sheet Modelo
A5: MODELO - Deve ser adaptado utilizando os valores, taxas e prazos do contrato
A7: Valores em Reais
A8: Data Saldo | B8: Saldo | C8: Spread BNDES (% a.a.) | D8: Sobretaxa Custo Financeiro (% a.a.) | E8: Taxa Cobrança BNDES (% a.a.)
A9: 2025-05-27 | B9: 30000 | C9: 1.25 | D9: 0.16 | E9: =C9+D9 -> 1.41
A11: Valores em Reais
A12: Data de Vencimento | B12: Principal Atualizado | C12: Juros Compensatórios | I12: Amortização | K12: Prestação
C13: Taxa | D13: Dias Úteis * | E13: Fator Taxa de Juros Fixa | F13: Fator Selic | G13: Fator Juros | H13: Juros Compensatórios | I13: N° de Parcelas Restantes Restantes | J13: Valor
A14: 2025-08-15 | B14: =B9 -> 30000 | C14: =E9 -> 1.41 | D14: =NETWORKDAYS(A9,A14-1,feriados) -> 57 | E14: =ROUND(((1+C14%)^(D14/252)),15) -> 1.003172031 | F14: =ROUND(PRODUCT(_xlfn._xlws.FILTER(SELIC!$C$2:$C$1856,(SELIC!$A$2:$A$1856>=Modelo!A9)*(SELIC!$A$2:$A$1856<Modelo!A14),"")),15) -> 1.031673858 | G14: =ROUND(E14*F14,15) -> 1.03494636 | H14: =round_to_even(B14*(G14-1),2) -> 1048.39 | K14: =J14+H14 -> 1048.39
A15: 2025-11-17 | B15: =round_to_even(B14-J14,2) -> 30000 | C15: =C14 -> 1.41 | D15: =NETWORKDAYS(A14,A15-1,feriados) -> 66 | E15: =ROUND(((1+C15%)^(D15/252)),15) -> 1.003673797 | F15: =ROUND(PRODUCT(_xlfn._xlws.FILTER(SELIC!$C$2:$C$1856,(SELIC!$A$2:$A$1856>=Modelo!A14)*(SELIC!$A$2:$A$1856<Modelo!A15),"")),15) -> 1.037046152 | G15: =ROUND(E15*F15,15) -> 1.040856049 | H15: =round_to_even(B15*(G15-1),2) -> 1225.68 | K15: =J15+H15 -> 1225.68
A16: 2025-12-15 | B16: =round_to_even(B15-J15,2) -> 30000 | C16: =C15 -> 1.41 | D16: 19 | E16: =ROUND(((1+C16%)^(D16/252)),15) -> 1.001056228 | F16: =ROUND(PRODUCT(_xlfn._xlws.FILTER(SELIC!$C$2:$C$1856,(SELIC!$A$2:$A$1856>=Modelo!A15)*(SELIC!$A$2:$A$1856<Modelo!A16),"")),15) -> 1.010527027 | G16: =ROUND(E16*F16,15) -> 1.011594373 | H16: =round_to_even(B16*(G16-1),2) -> 347.83 | I16: 24 | J16: =$B$16/24 -> 1250 | K16: =J16+H16 -> 1597.83
A17: 2026-01-15 | B17: =round_to_even(B16-J16,2) -> 28750 | C17: =C16 -> 1.41 | D17: 21 | E17: =ROUND(((1+C17%)^(D17/252)),15) -> 1.001167474 | F17: =ROUND(PRODUCT(_xlfn._xlws.FILTER(SELIC!$C$2:$C$1856,(SELIC!$A$2:$A$1856>=Modelo!A16)*(SELIC!$A$2:$A$1856<Modelo!A17),"")),15) -> 1.011641561 | G17: =ROUND(E17*F17,15) -> 1.012822627 | H17: =round_to_even(B17*(G17-1),2) -> 368.65 | I17: 23 | J17: =$B$16/24 -> 1250 | K17: =J17+H17 -> 1618.65
A18: 2026-02-18 | B18: =round_to_even(B17-J17,2) -> 27500 | C18: 1.41 | D18: 22 | E18: 1.001223102 | F18: =ROUND(PRODUCT(_xlfn._xlws.FILTER(SELIC!$C$2:$C$1856,(SELIC!$A$2:$A$1856>=Modelo!A17)*(SELIC!$A$2:$A$1856<Modelo!A18),"")),15) -> 1.012199289 | G18: 1.013437313 | H18: =round_to_even(B18*(G18-1),2) -> 369.53 | I18: 22 | J18: 1250 | K18: 1619.53
A19: 2026-03-16 | B19: =round_to_even(B18-J18,2) -> 26250 | C19: 1.41 | D19: 18 | E19: 1.001000609 | F19: =ROUND(PRODUCT(_xlfn._xlws.FILTER(SELIC!$C$2:$C$1856,(SELIC!$A$2:$A$1856>=Modelo!A18)*(SELIC!$A$2:$A$1856<Modelo!A19),"")),15) -> 1.00997022 | G19: 1.010980805 | H19: =round_to_even(B19*(G19-1),2) -> 288.25 | I19: 21 | J19: 1250 | K19: 1538.25
A20: 2026-04-15 | B20: =round_to_even(B19-J19,2) -> 25000 | C20: 1.41 | D20: 21 | E20: 1.001167474 | F20: =ROUND(PRODUCT(_xlfn._xlws.FILTER(SELIC!$C$2:$C$1856,(SELIC!$A$2:$A$1856>=Modelo!A19)*(SELIC!$A$2:$A$1856<Modelo!A20),"")),15) -> 1.011641561 | G20: 1.012822627 | H20: =round_to_even(B20*(G20-1),2) -> 320.57 | I20: 20 | J20: 1250 | K20: 1570.57
A21: 2026-05-15 | B21: =round_to_even(B20-J20,2) -> 23750 | C21: 1.41 | D21: 20 | E21: 1.001111849 | F21: =ROUND(PRODUCT(_xlfn._xlws.FILTER(SELIC!$C$2:$C$1856,(SELIC!$A$2:$A$1856>=Modelo!A20)*(SELIC!$A$2:$A$1856<Modelo!A21),"")),15) -> 1.011084141 | G21: 1.012208314 | H21: =round_to_even(B21*(G21-1),2) -> 289.95 | I21: 19 | J21: 1250 | K21: 1539.95
A22: 2026-06-15 | B22: =round_to_even(B21-J21,2) -> 22500 | C22: 1.41 | D22: 20 | E22: 1.001111849 | F22: =ROUND(PRODUCT(_xlfn._xlws.FILTER(SELIC!$C$2:$C$1856,(SELIC!$A$2:$A$1856>=Modelo!A21)*(SELIC!$A$2:$A$1856<Modelo!A22),"")),15) -> 1.011084141 | G22: 1.012208314 | H22: =round_to_even(B22*(G22-1),2) -> 274.69 | I22: 18 | J22: 1250 | K22: 1524.69
A23: 2026-07-15 | B23: =round_to_even(B22-J22,2) -> 21250 | C23: 1.41 | D23: 22 | E23: 1.001223102 | F23: =ROUND(PRODUCT(_xlfn._xlws.FILTER(SELIC!$C$2:$C$1856,(SELIC!$A$2:$A$1856>=Modelo!A22)*(SELIC!$A$2:$A$1856<Modelo!A23),"")),15) -> 1.012199289 | G23: 1.013437313 | H23: =round_to_even(B23*(G23-1),2) -> 285.54 | I23: 17 | J23: 1250 | K23: 1535.54
A24: continua...

Sheet SELIC
A1: Data | B1: Selic diária D-10* | C1: Fator SELIC
A2: 2020-07-27 | B2: 0.008442 | C2: 1.00008442 | G2: Atenção:
A3: 2020-07-28 | B3: 0.008442 | C3: 1.00008442 | G3: Atualizar a tabela com a taxa disponível no site do BNDES, em Moedas Contratuais, Sigla: TAXA SELIC D-10 (Cód: 052)
A4: 2020-07-29 | B4: 0.008442 | C4: 1.00008442 | G4: https://www.bndes.gov.br/SiteBNDES/bndes/bndes_pt/Galerias/Convivencia/Moedas_Contratuais/index.html
A5: 2020-07-30 | B5: 0.008442 | C5: 1.00008442 | G5: Se a taxa ainda não tiver sido divulgada, o sistema projeta utilizando a última disponível.
A6: 2020-07-31 | B6: 0.008442 | C6: 1.00008442
A7: 2020-08-03 | B7: 0.008442 | C7: 1.00008442
A8: 2020-08-04 | B8: 0.008442 | C8: 1.00008442
A9: 2020-08-05 | B9: 0.008442 | C9: 1.00008442
A10: 2020-08-06 | B10: 0.008442 | C10: 1.00008442
A11: 2020-08-07 | B11: 0.008442 | C11: 1.00008442
A12: 2020-08-10 | B12: 0.008442 | C12: 1.00008442
A13: 2020-08-11 | B13: 0.008442 | C13: 1.00008442
A14: 2020-08-12 | B14: 0.008442 | C14: 1.00008442
A15: 2020-08-13 | B15: 0.008442 | C15: 1.00008442
A16: 2020-08-14 | B16: 0.008442 | C16: 1.00008442
A17: 2020-08-17 | B17: 0.008442 | C17: 1.00008442
A18: 2020-08-18 | B18: 0.008442 | C18: 1.00008442
A19: 2020-08-19 | B19: 0.008442 | C19: 1.00008442
A20: 2020-08-20 | B20: 0.007469 | C20: 1.00007469
A21: 2020-08-21 | B21: 0.007469 | C21: 1.00007469
A22: 2020-08-24 | B22: 0.007469 | C22: 1.00007469
A23: 2020-08-25 | B23: 0.007469 | C23: 1.00007469
A24: 2020-08-26 | B24: 0.007469 | C24: 1.00007469
A25: 2020-08-27 | B25: 0.007469 | C25: 1.00007469
A26: 2020-08-28 | B26: 0.007469 | C26: 1.00007469
A27: 2020-08-31 | B27: 0.007469 | C27: 1.00007469
A28: 2020-09-01 | B28: 0.007469 | C28: 1.00007469
A29: 2020-09-02 | B29: 0.007469 | C29: 1.00007469
A30: 2020-09-03 | B30: 0.007469 | C30: 1.00007469
A31: 2020-09-04 | B31: 0.007469 | C31: 1.00007469
A32: 2020-09-08 | B32: 0.007469 | C32: 1.00007469
A33: 2020-09-09 | B33: 0.007469 | C33: 1.00007469
A34: 2020-09-10 | B34: 0.007469 | C34: 1.00007469
A35: 2020-09-11 | B35: 0.007469 | C35: 1.00007469
A36: 2020-09-14 | B36: 0.007469 | C36: 1.00007469
A37: 2020-09-15 | B37: 0.007469 | C37: 1.00007469
A38: 2020-09-16 | B38: 0.007469 | C38: 1.00007469
A39: 2020-09-17 | B39: 0.007469 | C39: 1.00007469
A40: 2020-09-18 | B40: 0.007469 | C40: 1.00007469
A41: 2020-09-21 | B41: 0.007469 | C41: 1.00007469
A42: 2020-09-22 | B42: 0.007469 | C42: 1.00007469
A43: 2020-09-23 | B43: 0.007469 | C43: 1.00007469
A44: 2020-09-24 | B44: 0.007469 | C44: 1.00007469
A45: 2020-09-25 | B45: 0.007469 | C45: 1.00007469
A46: 2020-09-28 | B46: 0.007469 | C46: 1.00007469
A47: 2020-09-29 | B47: 0.007469 | C47: 1.00007469
A48: 2020-09-30 | B48: 0.007469 | C48: 1.00007469
A49: 2020-10-01 | B49: 0.007469 | C49: 1.00007469
A50: 2020-10-02 | B50: 0.007469 | C50: 1.00007469
A51: 2020-10-05 | B51: 0.007469 | C51: 1.00007469
A52: 2020-10-06 | B52: 0.007469 | C52: 1.00007469
A53: 2020-10-07 | B53: 0.007469 | C53: 1.00007469
A54: 2020-10-08 | B54: 0.007469 | C54: 1.00007469
A55: 2020-10-09 | B55: 0.007469 | C55: 1.00007469
A56: 2020-10-13 | B56: 0.007469 | C56: 1.00007469
A57: 2020-10-14 | B57: 0.007469 | C57: 1.00007469
A58: 2020-10-15 | B58: 0.007469 | C58: 1.00007469
A59: 2020-10-16 | B59: 0.007469 | C59: 1.00007469
A60: 2020-10-19 | B60: 0.007469 | C60: 1.00007469
A61: 2020-10-20 | B61: 0.007469 | C61: 1.00007469
A62: 2020-10-21 | B62: 0.007469 | C62: 1.00007469
A63: 2020-10-22 | B63: 0.007469 | C63: 1.00007469
A64: 2020-10-23 | B64: 0.007469 | C64: 1.00007469
A65: 2020-10-26 | B65: 0.007469 | C65: 1.00007469
A66: 2020-10-27 | B66: 0.007469 | C66: 1.00007469
A67: 2020-10-28 | B67: 0.007469 | C67: 1.00007469
A68: 2020-10-29 | B68: 0.007469 | C68: 1.00007469
A69: 2020-10-30 | B69: 0.007469 | C69: 1.00007469
A70: 2020-11-03 | B70: 0.007469 | C70: 1.00007469
A71: 2020-11-04 | B71: 0.007469 | C71: 1.00007469
A72: 2020-11-05 | B72: 0.007469 | C72: 1.00007469
A73: 2020-11-06 | B73: 0.007469 | C73: 1.00007469
A74: 2020-11-09 | B74: 0.007469 | C74: 1.00007469
A75: 2020-11-10 | B75: 0.007469 | C75: 1.00007469
A76: 2020-11-11 | B76: 0.007469 | C76: 1.00007469
A77: 2020-11-12 | B77: 0.007469 | C77: 1.00007469
A78: 2020-11-13 | B78: 0.007469 | C78: 1.00007469
A79: 2020-11-16 | B79: 0.007469 | C79: 1.00007469
A80: 2020-11-17 | B80: 0.007469 | C80: 1.00007469
A81: 2020-11-18 | B81: 0.007469 | C81: 1.00007469
A82: 2020-11-19 | B82: 0.007469 | C82: 1.00007469
A83: 2020-11-20 | B83: 0.007469 | C83: 1.00007469
A84: 2020-11-23 | B84: 0.007469 | C84: 1.00007469
A85: 2020-11-24 | B85: 0.007469 | C85: 1.00007469
A86: 2020-11-25 | B86: 0.007469 | C86: 1.00007469
A87: 2020-11-26 | B87: 0.007469 | C87: 1.00007469
A88: 2020-11-27 | B88: 0.007469 | C88: 1.00007469
A89: 2020-11-30 | B89: 0.007469 | C89: 1.00007469
A90: 2020-12-01 | B90: 0.007469 | C90: 1.00007469
A91: 2020-12-02 | B91: 0.007469 | C91: 1.00007469
A92: 2020-12-03 | B92: 0.007469 | C92: 1.00007469
A93: 2020-12-04 | B93: 0.007469 | C93: 1.00007469
A94: 2020-12-07 | B94: 0.007469 | C94: 1.00007469
A95: 2020-12-08 | B95: 0.007469 | C95: 1.00007469
A96: 2020-12-09 | B96: 0.007469 | C96: 1.00007469
A97: 2020-12-10 | B97: 0.007469 | C97: 1.00007469
A98: 2020-12-11 | B98: 0.007469 | C98: 1.00007469
A99: 2020-12-14 | B99: 0.007469 | C99: 1.00007469
A100: 2020-12-15 | B100: 0.007469 | C100: 1.00007469
A101: 2020-12-16 | B101: 0.007469 | C101: 1.00007469
A102: 2020-12-17 | B102: 0.007469 | C102: 1.00007469
A103: 2020-12-18 | B103: 0.007469 | C103: 1.00007469
A104: 2020-12-21 | B104: 0.007469 | C104: 1.00007469
A105: 2020-12-22 | B105: 0.007469 | C105: 1.00007469
A106: 2020-12-23 | B106: 0.007469 | C106: 1.00007469
A107: 2020-12-24 | B107: 0.007469 | C107: 1.00007469
A108: 2020-12-28 | B108: 0.007469 | C108: 1.00007469
A109: 2020-12-29 | B109: 0.007469 | C109: 1.00007469
A110: 2020-12-30 | B110: 0.007469 | C110: 1.00007469
A111: 2020-12-31 | B111: 0.007469 | C111: 1.00007469
A112: 2021-01-04 | B112: 0.007469 | C112: 1.00007469
A113: 2021-01-05 | B113: 0.007469 | C113: 1.00007469
A114: 2021-01-06 | B114: 0.007469 | C114: 1.00007469
A115: 2021-01-07 | B115: 0.007469 | C115: 1.00007469
A116: 2021-01-08 | B116: 0.007469 | C116: 1.00007469
A117: 2021-01-11 | B117: 0.007469 | C117: 1.00007469
A118: 2021-01-12 | B118: 0.007469 | C118: 1.00007469
A119: 2021-01-13 | B119: 0.007469 | C119: 1.00007469
A120: 2021-01-14 | B120: 0.007469 | C120: 1.00007469
A121: 2021-01-15 | B121: 0.007469 | C121: 1.00007469
A122: 2021-01-18 | B122: 0.007469 | C122: 1.00007469
A123: 2021-01-19 | B123: 0.007469 | C123: 1.00007469
A124: 2021-01-20 | B124: 0.007469 | C124: 1.00007469
A125: 2021-01-21 | B125: 0.007469 | C125: 1.00007469
A126: 2021-01-22 | B126: 0.007469 | C126: 1.00007469
A127: 2021-01-25 | B127: 0.007469 | C127: 1.00007469
A128: 2021-01-26 | B128: 0.007469 | C128: 1.00007469
A129: 2021-01-27 | B129: 0.007469 | C129: 1.00007469
A130: 2021-01-28 | B130: 0.007469 | C130: 1.00007469
A131: 2021-01-29 | B131: 0.007469 | C131: 1.00007469
A132: 2021-02-01 | B132: 0.007469 | C132: 1.00007469
A133: 2021-02-02 | B133: 0.007469 | C133: 1.00007469
A134: 2021-02-03 | B134: 0.007469 | C134: 1.00007469
A135: 2021-02-04 | B135: 0.007469 | C135: 1.00007469
A136: 2021-02-05 | B136: 0.007469 | C136: 1.00007469
A137: 2021-02-08 | B137: 0.007469 | C137: 1.00007469
A138: 2021-02-09 | B138: 0.007469 | C138: 1.00007469
A139: 2021-02-10 | B139: 0.007469 | C139: 1.00007469
A140: 2021-02-11 | B140: 0.007469 | C140: 1.00007469
A141: 2021-02-12 | B141: 0.007469 | C141: 1.00007469
A142: 2021-02-17 | B142: 0.007469 | C142: 1.00007469
A143: 2021-02-18 | B143: 0.007469 | C143: 1.00007469
A144: 2021-02-19 | B144: 0.007469 | C144: 1.00007469
A145: 2021-02-22 | B145: 0.007469 | C145: 1.00007469
A146: 2021-02-23 | B146: 0.007469 | C146: 1.00007469
A147: 2021-02-24 | B147: 0.007469 | C147: 1.00007469
A148: 2021-02-25 | B148: 0.007469 | C148: 1.00007469
A149: 2021-02-26 | B149: 0.007469 | C149: 1.00007469
A150: 2021-03-01 | B150: 0.007469 | C150: 1.00007469
A151: 2021-03-02 | B151: 0.007469 | C151: 1.00007469
A152: 2021-03-03 | B152: 0.007469 | C152: 1.00007469
A153: 2021-03-04 | B153: 0.007469 | C153: 1.00007469
A154: 2021-03-05 | B154: 0.007469 | C154: 1.00007469
A155: 2021-03-08 | B155: 0.007469 | C155: 1.00007469
A156: 2021-03-09 | B156: 0.007469 | C156: 1.00007469
A157: 2021-03-10 | B157: 0.007469 | C157: 1.00007469
A158: 2021-03-11 | B158: 0.007469 | C158: 1.00007469
A159: 2021-03-12 | B159: 0.007469 | C159: 1.00007469
A160: 2021-03-15 | B160: 0.007469 | C160: 1.00007469
A161: 2021-03-16 | B161: 0.007469 | C161: 1.00007469
A162: 2021-03-17 | B162: 0.007469 | C162: 1.00007469
A163: 2021-03-18 | B163: 0.007469 | C163: 1.00007469
A164: 2021-03-19 | B164: 0.007469 | C164: 1.00007469
A165: 2021-03-22 | B165: 0.007469 | C165: 1.00007469
A166: 2021-03-23 | B166: 0.007469 | C166: 1.00007469
A167: 2021-03-24 | B167: 0.007469 | C167: 1.00007469
A168: 2021-03-25 | B168: 0.007469 | C168: 1.00007469
A169: 2021-03-26 | B169: 0.007469 | C169: 1.00007469
A170: 2021-03-29 | B170: 0.007469 | C170: 1.00007469
A171: 2021-03-30 | B171: 0.007469 | C171: 1.00007469
A172: 2021-03-31 | B172: 0.007469 | C172: 1.00007469
A173: 2021-04-01 | B173: 0.010379 | C173: 1.00010379
A174: 2021-04-05 | B174: 0.010379 | C174: 1.00010379
A175: 2021-04-06 | B175: 0.010379 | C175: 1.00010379
A176: 2021-04-07 | B176: 0.010379 | C176: 1.00010379
A177: 2021-04-08 | B177: 0.010379 | C177: 1.00010379
A178: 2021-04-09 | B178: 0.010379 | C178: 1.00010379
A179: 2021-04-12 | B179: 0.010379 | C179: 1.00010379
A180: 2021-04-13 | B180: 0.010379 | C180: 1.00010379
A181: 2021-04-14 | B181: 0.010379 | C181: 1.00010379
A182: 2021-04-15 | B182: 0.010379 | C182: 1.00010379
A183: 2021-04-16 | B183: 0.010379 | C183: 1.00010379
A184: 2021-04-19 | B184: 0.010379 | C184: 1.00010379
A185: 2021-04-20 | B185: 0.010379 | C185: 1.00010379
A186: 2021-04-22 | B186: 0.010379 | C186: 1.00010379
A187: 2021-04-23 | B187: 0.010379 | C187: 1.00010379
A188: 2021-04-26 | B188: 0.010379 | C188: 1.00010379
A189: 2021-04-27 | B189: 0.010379 | C189: 1.00010379
A190: 2021-04-28 | B190: 0.010379 | C190: 1.00010379
A191: 2021-04-29 | B191: 0.010379 | C191: 1.00010379
A192: 2021-04-30 | B192: 0.010379 | C192: 1.00010379
A193: 2021-05-03 | B193: 0.010379 | C193: 1.00010379
A194: 2021-05-04 | B194: 0.010379 | C194: 1.00010379
A195: 2021-05-05 | B195: 0.010379 | C195: 1.00010379
A196: 2021-05-06 | B196: 0.010379 | C196: 1.00010379
A197: 2021-05-07 | B197: 0.010379 | C197: 1.00010379
A198: 2021-05-10 | B198: 0.010379 | C198: 1.00010379
A199: 2021-05-11 | B199: 0.010379 | C199: 1.00010379
A200: 2021-05-12 | B200: 0.010379 | C200: 1.00010379
... 1640 more rows

Sheet Feriados
A1: FERIADOS
A2: 2009-01-01
A3: 2009-02-23
A4: 2009-02-24
A5: 2009-04-10
A6: 2009-04-21
A7: 2009-05-01
A8: 2009-06-11
A9: 2009-09-07
A10: 2009-10-12
A11: 2009-11-02
A12: 2009-11-15
A13: 2009-12-25
A14: 2010-01-01
A15: 2010-02-15
A16: 2010-02-16
A17: 2010-04-02
A18: 2010-04-21
A19: 2010-05-01
A20: 2010-06-03
A21: 2010-09-07
A22: 2010-10-12
A23: 2010-11-02
A24: 2010-11-15
A25: 2010-12-25
A26: 2011-01-01
A27: 2011-03-07
A28: 2011-03-08
A29: 2011-04-21
A30: 2011-04-22
A31: 2011-05-01
A32: 2011-06-23
A33: 2011-09-07
A34: 2011-10-12
A35: 2011-11-02
A36: 2011-11-15
A37: 2011-12-25
A38: 2012-01-01
A39: 2012-02-20
A40: 2012-02-21
A41: 2012-04-06
A42: 2012-04-21
A43: 2012-05-01
A44: 2012-06-07
A45: 2012-09-07
A46: 2012-10-12
A47: 2012-11-02
A48: 2012-11-15
A49: 2012-12-25
A50: 2013-01-01
A51: 2013-02-11
A52: 2013-02-12
A53: 2013-03-29
A54: 2013-04-21
A55: 2013-05-01
A56: 2013-05-30
A57: 2013-09-07
A58: 2013-10-12
A59: 2013-11-02
A60: 2013-11-15
A61: 2013-12-25
A62: 2014-01-01
A63: 2014-03-03
A64: 2014-03-04
A65: 2014-04-18
A66: 2014-04-21
A67: 2014-05-01
A68: 2014-06-19
A69: 2014-09-07
A70: 2014-10-12
A71: 2014-11-02
A72: 2014-11-15
A73: 2014-12-25
A74: 2015-01-01
A75: 2015-02-16
A76: 2015-02-17
A77: 2015-04-03
A78: 2015-04-21
A79: 2015-05-01
A80: 2015-06-04
A81: 2015-09-07
A82: 2015-10-12
A83: 2015-11-02
A84: 2015-11-15
A85: 2015-12-25
A86: 2016-01-01
A87: 2016-02-08
A88: 2016-02-09
A89: 2016-03-25
A90: 2016-04-21
A91: 2016-05-01
A92: 2016-05-26
A93: 2016-09-07
A94: 2016-10-12
A95: 2016-11-02
A96: 2016-11-15
A97: 2016-12-25
A98: 2017-01-01
A99: 2017-02-27
A100: 2017-02-28
A101: 2017-04-14
A102: 2017-04-21
A103: 2017-05-01
A104: 2017-06-15
A105: 2017-09-07
A106: 2017-10-12
A107: 2017-11-02
A108: 2017-11-15
A109: 2017-12-25
A110: 2018-01-01
A111: 2018-02-12
A112: 2018-02-13
A113: 2018-03-30
A114: 2018-04-21
A115: 2018-05-01
A116: 2018-05-31
A117: 2018-09-07
A118: 2018-10-12
A119: 2018-11-02
A120: 2018-11-15
A121: 2018-12-25
A122: 2019-01-01
A123: 2019-03-04
A124: 2019-03-05
A125: 2019-04-19
A126: 2019-04-21
A127: 2019-05-01
A128: 2019-06-20
A129: 2019-09-07
A130: 2019-10-12
A131: 2019-11-02
A132: 2019-11-15
A133: 2019-12-25
A134: 2020-01-01
A135: 2020-02-24
A136: 2020-02-25
A137: 2020-04-10
A138: 2020-04-21
A139: 2020-05-01
A140: 2020-06-11
A141: 2020-09-07
A142: 2020-10-12
A143: 2020-11-02
A144: 2020-11-15
A145: 2020-12-25
A146: 2021-01-01
A147: 2021-02-15
A148: 2021-02-16
A149: 2021-04-02
A150: 2021-04-21
A151: 2021-05-01
A152: 2021-06-03
A153: 2021-09-07
A154: 2021-10-12
A155: 2021-11-02
A156: 2021-11-15
A157: 2021-12-25
A158: 2022-01-01
A159: 2022-02-28
A160: 2022-03-01
A161: 2022-04-15
A162: 2022-04-21
A163: 2022-05-01
A164: 2022-06-16
A165: 2022-09-07
A166: 2022-10-12
A167: 2022-11-02
A168: 2022-11-15
A169: 2022-12-25
A170: 2023-01-01
A171: 2023-02-20
A172: 2023-02-21
A173: 2023-04-07
A174: 2023-04-21
A175: 2023-05-01
A176: 2023-06-08
A177: 2023-09-07
A178: 2023-10-12
A179: 2023-11-02
A180: 2023-11-15
A181: 2023-12-25
A182: 2024-01-01
A183: 2024-02-12
A184: 2024-02-13
A185: 2024-03-29
A186: 2024-04-21
A187: 2024-05-01
A188: 2024-05-30
A189: 2024-09-07
A190: 2024-10-12
A191: 2024-11-02
A192: 2024-11-15
A193: 2024-11-20
A194: 2024-12-25
A195: 2025-01-01
A196: 2025-03-03
A197: 2025-03-04
A198: 2025-04-18
A199: 2025-04-21
A200: 2025-05-01
... 462 more rows
